[Event "44th Chess Olympiad Women 2022"]
[Site "Chennai"]
[Date "2022.08.03"]
[Round "6.13"]
[White "Phan, Nguyen Mai Chi"]
[Black "Sahithi Varshini M"]
[Result "0-1"]
[WhiteElo "2139"]
[BlackElo "2312"]
[Annotator "TA"]
[PlyCount "136"]
[EventDate "2022.??.??"]
[TimeControl "60"]

{[%evp 17,136,9,0,6,7,0,0,0,0,0,14,15,26,0,23,13,18,18,29,0,3,0,0,-16,0,-54,
-40,-40,-40,-40,-40,-40,-40,-40,-40,-40,-40,-40,-40,-40,-40,-40,-40,-46,-46,
-71,-40,-40,-40,-40,-12,-39,-39,-37,-37,-39,-12,-39,-39,-40,-25,-66,-66,-66,
-66,-66,0,-66,-17,-61,-29,-61,-40,-61,-56,-62,0,0,0,0,0,0,0,0,0,0,0,-13,-13,
-59,-59,-59,-59,-70,-66,-66,0,0,0,0,0,-1025,-904,-715,-737,-29962,-29962,
-29964,-29952,-29967,-29967,-29976,-29977,-29979,-29978,-29978,-29979,-29981,
-29982,-29987,-29988]} 1. d4 {[%emt 0:00:06]} Nf6 {[%emt 0:00:44]} 2. Nf3 {
[%emt 0:00:17]} e6 {[%emt 0:00:25]} 3. c4 {[%emt 0:00:28]} Bb4+ {[%emt 0:00:49]
} 4. Nbd2 {[%emt 0:00:27]} b6 {[%emt 0:00:25]} 5. g3 {[%emt 0:00:56]} Bb7 {
[%emt 0:00:20]} 6. Bg2 {[%emt 0:00:58]} O-O {[%emt 0:00:44]} 7. O-O {[%emt 0:
00:00]} d5 {[%emt 0:00:21]} 8. Ne5 {[%emt 0:02:37]} Nbd7 {[%emt 0:16:52] 8...
a5 is more fashionable.} 9. cxd5 {[%emt 0:06:40]} exd5 {[%emt 0:02:36]} 10. a3
{[%emt 0:07:30] E16: Queen's Indian: 4 g3 Bb7 5 Bg2 Bb4+.} Bxd2 {[%emt 0:09:16]
} 11. Bxd2 {[%emt 0:01:43]} Re8 {[%emt 0:00:59] [#]} 12. Nxd7 $146 {[%emt 0:00:
00] The position is equal.} ({Predecessor:} 12. Nd3 Qe7 13. Rc1 c5 14. dxc5
bxc5 15. Bc3 Ne4 16. e3 Rad8 17. Ba5 Rb8 18. Nf4 {½-½ (45) Duchardt,A-Ryder,
A (2220) ICCF email 2013}) 12... Qxd7 {[%emt 0:01:15]} 13. Re1 {[%emt 0:01:22]}
Rac8 {[%emt 0:05:14]} 14. b4 {[%emt 0:09:11]} Ne4 {[%emt 0:07:37][%cal Yf6e4,
Ye4d6,Yd6c4]} 15. Be3 {[%emt 0:01:47]} Nd6 {[%emt 0:13:39]} 16. Rc1 {[%emt 0:
01:07]} c6 {[%emt 0:15:08]} 17. Bf4 {[%emt 0:01:15]} Nc4 {[%emt 0:00:00]} 18.
Rc3 {[%emt 0:00:58]} b5 {[%emt 0:02:01]} 19. h4 {[%emt 0:04:44]} a5 {[%emt 0:
02:52]} 20. Kh2 {[%emt 0:02:24]} Ra8 {[%emt 0:00:50]} 21. Bf3 {[%emt 0:00:00]}
(21. bxa5 $11 Rxa5 22. e4) 21... f5 {[%emt 0:02:17]} 22. Rg1 {[%emt 0:00:00]}
Qe7 {[%emt 0:01:16]} 23. Qb1 {[%emt 0:01:04]} Bc8 {[%emt 0:00:10]} 24. Rb3 {
[%emt 0:01:45]} Be6 {[%emt 0:00:41]} 25. Bg5 {[%emt 0:03:09]} Qf8 {[%emt 0:00:
09]} 26. Qd3 {[%emt 0:00:31]} axb4 {[%emt 0:00:45]} 27. axb4 {[%emt 0:00:06]}
Ra4 {[%emt 0:00:11]} 28. Qc3 {[%emt 0:00:37]} Rea8 {[%emt 0:00:00]} 29. Bf4 {
[%emt 0:00:53]} Ra2 {[%emt 0:01:26]} 30. Rd1 {[%emt 0:02:16]} Qe8 {[%emt 0:00:
30]} 31. Re1 {[%emt 0:01:16]} R8a4 {[%emt 0:03:52]} 32. Qd3 {[%emt 0:00:40]}
Qa8 {[%emt 0:00:17]} 33. Reb1 {[%emt 0:00:38]} Ra1 {[%emt 0:00:00]} 34. Bg2 {
[%emt 0:00:20]} Rxb1 {[%emt 0:00:09]} 35. Rxb1 {[%emt 0:00:40]} Qf8 {[%emt 0:
02:00]} 36. Qc3 {[%emt 0:00:14]} Bf7 {[%emt 0:00:05]} 37. Bf3 {[%emt 0:00:52]}
Qe8 {[%emt 0:00:14]} 38. Qd3 {[%emt 0:00:23]} Bh5 {[%emt 0:00:00]} 39. Bxh5 {
[%emt 0:01:36]} Qxh5 {[%emt 0:00:06]} 40. f3 {[%emt 0:00:28]} Ra2 {[%emt 0:01:
32]} 41. Kg2 {[%emt 0:30:11]} Qe8 {[%emt 0:30:35]} (41... Qf7 $15) 42. Kf2 {
[%emt 0:00:33]} (42. Qxf5 $11 Rxe2+ 43. Kh3) 42... g6 {[%emt 0:00:00]} (42...
h6 $15) 43. Qd1 {[%emt 0:00:00]} Qa8 {[%emt 0:00:00] Black is much more active.
} 44. Qd3 {[%emt 0:00:00]} Qa7 {[%emt 0:00:00]} 45. Kg2 {[%emt 0:00:00]} Kf7 {
[%emt 0:00:00]} 46. h5 {[%emt 0:00:00]} Ra1 {[%emt 0:00:00]} ({Black should
play} 46... Kf6 $15) 47. hxg6+ {[%emt 0:00:00]} hxg6 {[%emt 0:00:00]} 48. Rxa1
{[%emt 0:00:00]} Qxa1 $11 {[%emt 0:00:00] Endgame KQB-KQN} 49. e4 {[%emt 0:01:
18]} Qb2+ {[%emt 0:00:00]} 50. Kh3 {[%emt 0:00:10]} dxe4 {[%emt 0:00:00]} 51.
fxe4 {[%emt 0:00:10]} Qa3 {[%emt 0:00:00]} 52. Qxa3 {[%emt 0:00:49]} (52. Qb1 {
is more complex.} Qf3 53. exf5 Qh5+ 54. Kg2) 52... Nxa3 {[%emt 0:00:00]} 53.
exf5 {[%emt 0:00:38]} (53. d5 $11 cxd5 54. exd5) 53... gxf5 {[%emt 0:00:00]
KB-KN} 54. Bd6 $1 {[%emt 0:00:57]} Nc2 {[%emt 0:00:00] [#] ...Ke6 is the
strong threat.} 55. Bc5 {[%emt 0:00:06]} Ke6 {[%emt 0:00:00]} 56. Kh4 {[%emt 0:
00:13]} Ne3 {[%emt 0:02:42]} (56... Kf6 $1 $15) 57. Kg5 {[%emt 0:00:24]} Nd5 {
[%emt 0:00:07]} 58. Bf8 $1 {[%emt 0:01:50]} Nc3 {[%emt 0:00:18] Hoping for ...
Ne2.} 59. Bc5 $2 {[%emt 0:01:08] [#]} (59. Bg7 $11) 59... Ne2 $1 $19 {[%emt 0:
00:07]} 60. Kh4 {[%emt 0:01:18]} Kd5 {[%emt 0:00:05]} 61. Kg5 {[%emt 0:00:45]}
Nxg3 {[%emt 0:00:12] Black mates.} 62. Kf4 {[%emt 0:00:13]} Ne2+ {[%emt 0:00:
05]} 63. Kxf5 {[%emt 0:00:41]} Nxd4+ {[%emt 0:00:11]} 64. Kf6 {[%emt 0:00:18]}
Nc2 {[%emt 0:00:58]} 65. Ke7 {[%emt 0:00:00]} Kc4 {[%emt 0:00:04]} 66. Kd6 {
[%emt 0:00:28]} Nxb4 {[%emt 0:00:06]} 67. Bg1 {[%emt 0:00:37]} Nd3 {[%emt 0:00:
34]} 68. Kxc6 {[%emt 0:00:24]} b4 {[%emt 0:00:02] Weighted Error Value:
White=0.25 (precise) /Black=0.09 (flawless)} 0-1

[Event "44th Chess Olympiad Women 2022"]
[Site "Chennai"]
[Date "2022.08.03"]
[Round "6.13"]
[White "Ryjanova, Julia"]
[Black "Karavade, Eesha"]
[Result "1/2-1/2"]
[WhiteElo "2284"]
[BlackElo "2339"]
[Annotator "TA"]
[PlyCount "60"]
[EventDate "2022.??.??"]
[TimeControl "60"]

{[%evp 23,60,14,23,12,22,25,19,10,30,19,18,0,0,0,0,0,10,7,12,0,2,8,19,4,16,9,
13,-7,0,-12,-11,-10,0,0,0,0,0,0,0]} 1. d4 {[%emt 0:00:02]} Nf6 {[%emt 0:00:18]}
2. c4 {[%emt 0:00:09]} e6 {[%emt 0:00:12]} 3. Nf3 {[%emt 0:00:16]} d5 {[%emt 0:
00:00]} 4. g3 {[%emt 0:00:22]} dxc4 {[%emt 0:01:42]} 5. Bg2 {[%emt 0:00:22]} c5
{[%emt 0:01:12]} 6. O-O {[%emt 0:00:25]} Nc6 {[%emt 0:00:05]} 7. dxc5 {[%emt 0:
00:00]} Qxd1 {[%emt 0:01:00]} 8. Rxd1 {[%emt 0:00:09]} Bxc5 {[%emt 0:00:09]} 9.
Nbd2 {[%emt 0:00:57]} c3 {[%emt 0:00:44]} 10. bxc3 {[%emt 0:00:18]} O-O {
[%emt 0:00:07]} 11. Nb3 {[%emt 0:00:28]} Be7 {[%emt 0:00:08]} 12. Nfd4 {
[%emt 0:02:11]} Bd7 {[%emt 0:15:34]} 13. Nxc6 {[%emt 0:06:18] E04: Open
Catalan: 5 Nf3.} Bxc6 {[%emt 0:00:40]} 14. Bxc6 {[%emt 0:00:12]} bxc6 {[%emt 0:
00:00]} 15. c4 {[%emt 0:00:27]} a5 {[%emt 0:17:59]} 16. Be3 {[%emt 0:27:25]} a4
{[%emt 0:01:49] The position is equal.} 17. Nd4 {[%emt 0:00:15]} Rfc8 {[%emt 0:
00:00]} 18. f3 {[%emt 0:05:23] [#]} g6 $146 {[%emt 0:11:56]} ({Predecessor:} 
18... Bc5 19. Kf2 Bxd4 20. Bxd4 c5 21. Be3 Rab8 22. Rac1 h6 23. Rd3 e5 24. Ra3
e4 25. Rxa4 exf3 26. Kxf3 {1-0 (42) Wojtaszek,R (2726)-Stern,R (2504) Warsaw
2010}) 19. Rab1 {[%emt 0:01:23]} e5 {[%emt 0:01:44]} 20. Nc2 {[%emt 0:01:57]}
Rcb8 {[%emt 0:07:08]} 21. Kf1 {[%emt 0:02:17]} Kf8 {[%emt 0:04:53][%cal Yg8f8,
Yf8e8,Ye8d7]} 22. Bd2 {[%emt 0:08:57]} Rxb1 {[%emt 0:12:04]} 23. Rxb1 {[%emt 0:
00:19]} Nd7 {[%emt 0:00:04] Prevents Rb6.} 24. Rb7 {[%emt 0:04:39]} Ke8 {
[%emt 0:04:32]} 25. Bc3 {[%emt 0:08:20]} Bd6 {[%emt 0:01:33]} 26. Ke1 {[%emt 0:
09:31]} Nc5 {[%emt 0:03:14]} 27. Rb6 {[%emt 0:03:50]} Rb8 {[%emt 0:00:00]} 28.
Rxb8+ {[%emt 0:02:25]} ({But not} 28. Rxc6 Kd7 29. Rxd6+ Kxd6 $17) 28... Bxb8 {
[%emt 0:00:03]} 29. Nb4 {[%emt 0:04:18]} Kd7 {[%emt 0:00:10]} 30. Kd2 {[%emt 0:
03:02]} f5 {[%emt 0:00:08] An uneventful encounter. Weighted Error Value:
White=0.05 (flawless) /Black=0.03 (flawless)} 1/2-1/2

[Event "44th Chess Olympiad Women 2022"]
[Site "Chennai"]
[Date "2022.08.03"]
[Round "6.13"]
[White "Vishwa Vasnawala"]
[Black "Nguyen, Thu Giang"]
[Result "1-0"]
[WhiteElo "2305"]
[BlackElo "2119"]
[Annotator "TA"]
[PlyCount "193"]
[EventDate "2022.??.??"]
[TimeControl "60"]

{[%evp 15,193,30,32,27,69,18,33,17,22,28,50,7,27,30,52,28,55,10,12,0,178,185,
195,197,187,201,195,147,143,118,112,123,159,144,175,173,188,157,162,121,158,
104,95,98,121,111,115,132,122,110,113,101,95,40,253,125,160,170,165,160,160,
160,160,177,203,176,225,202,347,290,392,251,259,256,248,171,202,156,275,214,
244,195,306,307,1078,1027,965,480,495,441,442,437,310,303,288,175,303,284,289,
287,287,229,262,256,271,139,139,119,129,123,120,102,129,139,141,126,209,180,
222,206,199,133,226,234,308,276,282,267,310,299,520,513,509,372,393,363,756,
310,305,308,707,397,384,0,673,0,233,214,183,34,38,0,0,0,91,22,20,9,30,8,8,0,0,
0,0,0,81,63,329,329,29984,29985,29985,29986,29985,29986,29988,29989,29989,
29990]} 1. d4 {[%emt 0:00:02]} Nf6 {[%emt 0:00:12]} 2. c4 {[%emt 0:00:06]} e6 {
[%emt 0:00:15]} 3. g3 {[%emt 0:00:11]} d5 {[%emt 0:01:05]} 4. Nf3 {[%emt 0:00:
00]} dxc4 {[%emt 0:00:36]} 5. Qa4+ {[%emt 0:00:37]} Bd7 {[%emt 0:02:34]} 6.
Qxc4 {[%emt 0:00:08]} Bc6 {[%emt 0:00:56]} 7. Bg2 {[%emt 0:00:14]} Be7 {
[%emt 0:01:24]} 8. O-O {[%emt 0:00:21]} O-O {[%emt 0:00:43]} 9. Bf4 {[%emt 0:
00:00] [#] E02: Open Catalan: 5 Qa4+.} b5 $146 {[%emt 0:10:01]} ({Predecessor:
} 9... Nbd7 10. Rd1 Bd6 11. Bg5 h6 12. Bxf6 Nxf6 13. Nc3 Qe7 14. Nd2 Bxg2 15.
Kxg2 c6 16. Nde4 Nxe4 17. Nxe4 {1-0 (57) Izoria,Z (2646)-Bagheri,A (2520)
Bastia 2005}) 10. Qc1 {[%emt 0:15:16]} (10. Qd3 $14) 10... a5 $11 {[%emt 0:00:
00]} 11. Rd1 {[%emt 0:03:09][%cal Ya2a4] White is slightly better.} Qc8 {
[%emt 0:06:00]} 12. Nbd2 {[%emt 0:11:43][%cal Yb1d2,Yd2b3,Yb3c5]} Qb7 {[%emt 0:
04:13]} 13. Bg5 {[%emt 0:05:29]} Nbd7 {[%emt 0:01:58]} 14. Qc2 {[%emt 0:03:15]}
h6 {[%emt 0:05:39]} 15. Bxf6 {[%emt 0:00:42]} Nxf6 {[%emt 0:00:00]} 16. Rdc1 {
[%emt 0:06:35]} (16. Rac1 $5 {[%cal Rc2c6]} Bd5 17. Qxc7 $14) 16... Ra6 {
[%emt 0:01:30]} 17. Nb3 {[%emt 0:02:14][%cal Yb3a5]} Nd7 $2 {[%emt 0:02:31] [#]
} (17... Qa8 $1 $11) 18. Ng5 $1 $36 {[%emt 0:10:36] White is on the roll.} hxg5
{[%emt 0:09:31]} (18... Bxg5 19. Bxc6) 19. Bxc6 {[%emt 0:00:20]} Qc8 {[%emt 0:
00:16]} 20. Bxb5 {[%emt 0:01:50]} Ra7 {[%emt 0:00:55]} 21. Qc6 {[%emt 0:05:39]}
({White should try} 21. Qd2 $18) 21... Nf6 {[%emt 0:03:01]} 22. Nc5 {[%emt 0:
04:42]} Rd8 {[%emt 0:05:00]} 23. e3 {[%emt 0:00:58]} Nd5 {[%emt 0:02:40]} 24.
Be2 {[%emt 0:09:27]} Rd6 {[%emt 0:00:00]} 25. Qa4 {[%emt 0:00:34]} Rb6 {
[%emt 0:07:29]} 26. Qc2 {[%emt 0:00:02]} c6 {[%emt 0:06:18]} 27. a3 {[%emt 0:
03:08]} Bxc5 {[%emt 0:03:42]} 28. dxc5 {[%emt 0:00:49]} (28. Qxc5 $142 {
Strongly threatening e4.} Qb8 29. Rab1) 28... Rb8 $16 {[%emt 0:00:26]} 29. b3 {
[%emt 0:02:59]} Qd8 {[%emt 0:02:11]} 30. Rab1 {[%emt 0:00:59]} Qf6 {[%emt 0:00:
55]} 31. e4 {[%emt 0:03:47]} Nc7 {[%emt 0:00:00]} 32. Rd1 {[%emt 0:01:31]
aiming for Rd6.} Ne8 {[%emt 0:01:40] Prevents Rd6.} 33. Qc4 {[%emt 0:03:00]}
Qe5 {[%emt 0:02:23]} 34. Qd4 {[%emt 0:01:17]} (34. Bf3 $16) 34... Qc7 $2 {
[%emt 0:00:56]} (34... Qxd4 $14 35. Rxd4 Nf6) 35. f3 {[%emt 0:01:00]} (35. e5
$18 {is the precise move to win.}) 35... e5 {[%emt 0:00:00]} 36. Qe3 {[%emt 0:
00:40]} Qe7 {[%emt 0:00:14]} 37. Bc4 {[%emt 0:00:42]} g6 {[%emt 0:00:41]} 38.
Kg2 {[%emt 0:01:23][%cal Yh2h4]} Kg7 {[%emt 0:00:19]} 39. Rd3 {[%emt 0:01:28]}
Rc7 {[%emt 0:01:14]} 40. Rd2 {[%emt 0:01:15]} Nf6 {[%emt 0:02:47]} (40... Rd8 {
keeps fighting.} 41. Rbd1 Rxd2+ 42. Rxd2 (42. Qxd2 Qxc5 43. Qxg5 Nd6 $16) 42...
Rc8) 41. Rd6 $18 {[%emt 0:10:41]} (41. Qxg5 $6 Qxc5 42. Rc2 Rd7 $16) 41... g4 {
[%emt 0:06:23]} (41... Rd7 {was necessary.} 42. Rbd1 (42. Rxc6 Rd4 $16) (42.
Qxg5 Rxd6 43. cxd6 Qxd6 $16) 42... Rbd8) 42. Rf1 {[%emt 0:06:32]} Rh8 {[%emt 0:
01:28]} 43. Qe2 {[%emt 0:03:28]} Ne8 {[%emt 0:00:00]} 44. Rfd1 {[%emt 0:07:16]
[%cal Yf3g4]} Qg5 {[%emt 0:05:21]} 45. R6d3 {[%emt 0:02:14] Active counter
play!} Nf6 {[%emt 0:01:42]} 46. Rf1 {[%emt 0:00:00]} Re7 {[%emt 0:04:00]} (
46... Rf8 $16 {is a better defense.} 47. fxg4 Qxg4 48. Qxg4 Nxg4) 47. Kg1 {
[%emt 0:00:32]} Rh3 {[%emt 0:00:55]} 48. Qg2 {[%emt 0:00:00]} Re8 {[%emt 0:00:
18]} (48... Qh5 $142 49. Qd2 Qh6) 49. Qd2 {[%emt 0:00:00]} Qh5 {[%emt 0:00:38]}
(49... Qxd2 50. Rxd2 Re7) 50. fxg4 {[%emt 0:00:20]} Qxg4 {[%emt 0:00:26]} 51.
Qf2 {[%emt 0:00:05]} (51. Rdf3 $142) 51... Qg5 {[%emt 0:05:07]} 52. Rd6 {
[%emt 0:01:34][%cal Rd6f6]} Nxe4 {[%emt 0:00:39]} 53. Qxf7+ {[%emt 0:00:11]}
Kh6 {[%emt 0:00:05][%cal Yh3g3]} 54. Rxg6+ {[%emt 0:00:00]} (54. Qxe8 Qe3+ 55.
Kh1 (55. Kg2 Rxg3+ 56. hxg3 Qxg3+ 57. Kh1 Qh3+ 58. Kg1 Qg3+ 59. Kh1 Qh3+ 60.
Kg1 Qg3+ 61. Kh1 $11) 55... Rxh2+ 56. Kxh2 Qxg3+ 57. Kh1 Qh4+ 58. Kg2 Qg3+ 59.
Kh1 Qh4+ 60. Kg2 Qg3+ 61. Kh1 $11) 54... Qxg6 {[%emt 0:00:00]} 55. Qxg6+ {
[%emt 0:00:06] Remove Defender} Kxg6 {[%emt 0:00:00]} 56. Bf7+ {[%emt 0:00:02]}
Kg7 {[%emt 0:01:48]} 57. Bxe8 {[%emt 0:00:01]} Nxc5 {[%emt 0:00:20] Endgame
KRB-KRN} 58. Rf3 {[%emt 0:00:43]} (58. Bxc6 $6 Nxb3 59. Bd5 Nd4 60. Rf7+ Kg6
$18) 58... Ne6 {[%emt 0:03:25]} 59. Bd7 {[%emt 0:01:40]} ({Much less strong is
} 59. Bxc6 Nd4 $18) 59... Nd4 {[%emt 0:00:00]} 60. Re3 {[%emt 0:00:32]} (60.
Bxh3 $18 Nxf3+ 61. Kf2) 60... Rh8 $16 {[%emt 0:00:21]} 61. Bg4 {[%emt 0:00:28]}
Kf6 {[%emt 0:00:11]} 62. Kg2 {[%emt 0:00:00]} Rb8 {[%emt 0:00:20]} 63. Bd1 $1 {
[%emt 0:00:04]} Kf5 {[%emt 0:00:17]} 64. h4 {[%emt 0:00:42]} e4 {[%emt 0:00:16]
Prevents Bf3.} 65. Rc3 {[%emt 0:00:00]} Rb5 {[%emt 0:01:13]} (65... Rf8 $16 66.
a4 Kf6) 66. Kf2 $18 {[%emt 0:00:00]} Ke5 {[%emt 0:00:11]} 67. a4 {[%emt 0:00:
16]} Rd5 {[%emt 0:00:11]} 68. Bg4 {[%emt 0:00:35]} ({Better is} 68. h5 $1 $18)
68... c5 {[%emt 0:00:20]} (68... Rd8 $16 69. h5 Rf8+ 70. Kg2 (70. Ke3 Kd5 $14)
70... Kf6) 69. Bc8 {[%emt 0:00:00]} Kd6 {[%emt 0:03:28]} 70. Ke3 {[%emt 0:00:
28]} Re5 {[%emt 0:00:31]} 71. g4 {[%emt 0:00:34]} Re7 {[%emt 0:01:41]} 72. h5 {
[%emt 0:00:29]} Kd5 $2 {[%emt 0:00:00]} (72... Rc7) 73. Ba6 {[%emt 0:00:29]}
Rg7 {[%emt 0:00:39]} 74. Kf4 {[%emt 0:00:19]} Ne6+ {[%emt 0:01:27]} 75. Kg3 $1
{[%emt 0:00:06]} Ra7 $2 {[%emt 0:02:23]} (75... Ke5 76. Bc8 Nd4 77. Rxc5+ Kd6)
76. Bc8 {[%emt 0:00:45]} (76. Bc4+ $142 Kd4 77. Rc1) 76... Nd4 {[%emt 0:00:19]
Threatens to win with ... Ne2+.} 77. Re3 {[%emt 0:00:29] Against Ne2+} Nc2 $2 {
[%emt 0:00:22]} (77... Rc7) 78. Re2 {[%emt 0:00:54]} Nd4 {[%emt 0:00:05]} 79.
Re3 $2 {[%emt 0:00:31]} (79. Re1) 79... Nc2 $1 {[%emt 0:00:05] [#]} 80. Rc3 $2
{[%emt 0:00:09]} (80. Rxe4 $1 Kxe4 81. Bf5+ Ke5 82. Bxc2) 80... Nd4 {[%emt 0:
00:09] Hoping for ...Ne2+.} 81. Kf2 {[%emt 0:00:52] Inhibits Ne2.} Rf7+ {
[%emt 0:00:00]} 82. Ke1 {[%emt 0:00:05]} (82. Kg2 $18) 82... Nf3+ $14 {[%emt 0:
02:14]} 83. Ke2 {[%emt 0:00:05]} Nd4+ {[%emt 0:00:06]} 84. Ke1 {[%emt 0:00:05]}
(84. Kd1 $11) 84... Nf3+ $1 $16 {[%emt 0:00:04] [#]} 85. Kd1 {[%emt 0:00:16]} (
85. Kf1 $1 $16) 85... Kd4 $11 {[%emt 0:00:29]} 86. Rc4+ {[%emt 0:00:41]} Kd5 {
[%emt 0:00:00]} 87. Rc2 {[%emt 0:01:46]} (87. Bf5 $5 {[%cal Rf5e4]} Nd4 88. Rc3
$16) 87... Nd4 {[%emt 0:00:12][%csl Yb3,Yc2] Against Bf5. ...Rf1+ is the
strong threat.} 88. Rc3 {[%emt 0:00:29] And now Rh3 would win.} Rf1+ {[%emt 0:
01:30]} 89. Kd2 {[%emt 0:00:01]} Rf2+ {[%emt 0:00:59]} 90. Ke1 {[%emt 0:00:08]}
Re2+ {[%emt 0:00:44] [#]} (90... Rh2 $11) 91. Kd1 $1 $16 {[%emt 0:00:43]} e3 $2
{[%emt 0:00:29]} ({Black should play} 91... Rg2 $14) 92. Rd3 $18 {[%emt 0:00:
06][%cal Yd3d4] Intending Rxd4+! and mate.} Ke4 $2 {[%emt 0:00:56] [#]} (92...
Rh2 $18 93. Rxe3 Kd6) 93. Rxd4+ $1 {[%emt 0:00:48] White mates.} cxd4 {[%emt 0:
00:05]} 94. Kxe2 {[%emt 0:00:01]} d3+ {[%emt 0:00:08]} 95. Ke1 {[%emt 0:00:27]}
e2 {[%emt 0:01:07]} 96. Bf5+ {[%emt 0:00:10]} (96. h6 $2 {gets mated.} Ke3 97.
h7 d2#) 96... Ke3 {[%emt 0:00:04] [#]} 97. Bxd3 $1 {[%emt 0:00:03] Weighted
Error Value: White=0.35/Black=0.33} 1-0

[Event "44th Chess Olympiad Women 2022"]
[Site "Chennai"]
[Date "2022.08.03"]
[Round "6.14"]
[White "Alboredo, Julia"]
[Black "Repkova, Eva"]
[Result "1/2-1/2"]
[WhiteElo "2264"]
[BlackElo "2303"]
[Annotator "TA"]
[PlyCount "85"]
[EventDate "2022.??.??"]
[TimeControl "60"]

{[%evp 9,85,17,21,29,22,16,12,20,15,3,33,-4,33,15,17,6,21,12,11,-14,0,4,43,37,
33,47,116,110,121,104,112,22,120,97,88,21,93,0,0,0,0,1,15,15,13,13,15,0,0,0,0,
0,0,0,8,8,8,8,8,4,2,1,8,8,8,8,8,8,8,0,0,0,0,0,0,0,11,0]} 1. e4 {[%emt 0:00:04]}
e5 {[%emt 0:00:09]} 2. Nf3 {[%emt 0:00:12]} Nc6 {[%emt 0:00:05]} 3. Bc4 {
[%emt 0:00:23]} Nf6 {[%emt 0:00:08]} 4. d3 {[%emt 0:00:13]} Bc5 {[%emt 0:00:08]
} 5. c3 {[%emt 0:00:21]} a6 {[%emt 0:01:26]} 6. a4 {[%emt 0:00:55] C54: Giuoco
Piano: 4 c3 Nf6, main lines with 5 d4 and 5 d3.} Ba7 {[%emt 0:00:30]} 7. Bg5 {
[%emt 0:00:22]} h6 {[%emt 0:01:54]} 8. Bh4 {[%emt 0:00:08]} d6 {[%emt 0:03:18]}
9. Nbd2 {[%emt 0:00:49]} Qe7 {[%emt 0:09:04]} (9... g5 $5 {[%cal Rg5h4]} 10.
Bg3 O-O $11) 10. b4 {[%emt 0:02:31]} Be6 {[%emt 0:04:26] [#]} 11. Bxe6 $146 {
[%emt 0:07:08]} ({Predecessor:} 11. O-O O-O 12. Bxe6 Qxe6 13. Qb3 Nh5 14. b5
Nb8 15. d4 Nd7 16. Bg3 Qxb3 17. Nxb3 {0-1 (58) Fedorov,A (2529)-Nozdrachev,V 
(2495) Cheliabinsk 2022}) 11... Qxe6 {[%emt 0:07:11]} 12. O-O {[%emt 0:10:42]
[%cal Yd3d4]} g5 {[%emt 0:01:20]} 13. Bg3 {[%emt 0:00:10]} Nh5 {[%emt 0:00:49]}
14. Nb3 {[%emt 0:14:31]} Qg6 {[%emt 0:23:05]} 15. d4 {[%emt 0:11:34]} f6 {
[%emt 0:00:05]} 16. b5 {[%emt 0:02:19]} Ne7 {[%emt 0:05:33]} 17. Qd3 {[%emt 0:
00:00]} ({Much weaker is} 17. dxe5 Nxg3 18. hxg3 fxe5 $11) 17... Nf4 {[%emt 0:
00:00]} (17... O-O $14) 18. Bxf4 $16 {[%emt 0:04:19]} gxf4 {[%emt 0:00:03]} 19.
Kh1 {[%emt 0:02:00]} O-O {[%emt 0:02:56]} 20. g3 {[%emt 0:01:57]} (20. bxa6 $16
bxa6 21. Nbd2 (21. Qxa6 Qf7 $11)) 20... Qg4 {[%emt 0:01:33]} (20... f5 $1 $11)
21. Rg1 {[%emt 0:04:28] [#] aiming for gxf4.} Kh8 {[%emt 0:00:09]} 22. Nh4 {
[%emt 0:03:32]} (22. bxa6 $16 bxa6 23. Nbd2) 22... Rg8 {[%emt 0:00:33]} (22...
axb5 $11 {remains equal.} 23. axb5 Bb6) 23. Qf3 {[%emt 0:00:55]} ({Better is} 
23. bxa6 $16 {Nf5 is the strong threat.} bxa6 24. Nd2) 23... Qxf3+ $11 {
[%emt 0:15:47] The position is equal.} 24. Nxf3 {[%emt 0:00:02]} fxg3 {[%emt 0:
00:00]} 25. hxg3 {[%emt 0:02:12]} axb5 {[%emt 0:00:04]} 26. axb5 {[%emt 0:00:
00]} f5 {[%emt 0:00:04]} 27. exf5 {[%emt 0:03:56]} Nxf5 {[%emt 0:00:47]} 28. g4
{[%emt 0:00:22]} Ne7 {[%emt 0:00:15]} 29. dxe5 {[%emt 0:01:49]} Bxf2 {[%emt 0:
00:00]} 30. Rxa8 {[%emt 0:00:28]} Rxa8 {[%emt 0:00:04]} 31. Rg2 {[%emt 0:01:21]
} Bb6 {[%emt 0:00:17]} 32. exd6 {[%emt 0:00:19]} cxd6 {[%emt 0:00:09]} 33. Re2
{[%emt 0:00:24]} Nd5 {[%emt 0:01:05]} 34. Re6 {[%emt 0:00:56][%csl Yd6,Yh6]}
Rf8 {[%emt 0:04:29]} 35. Nbd4 {[%emt 0:01:44]} Bxd4 {[%emt 0:04:03]} 36. Nxd4 {
[%emt 0:00:06]} Nxc3 {[%emt 0:02:01]} 37. Rxh6+ {[%emt 0:00:16] Endgame KRN-KRN
} Kg8 {[%emt 0:00:32]} 38. Rxd6 {[%emt 0:00:18]} Rf4 {[%emt 0:00:00]} 39. g5 {
[%emt 0:01:29]} Rh4+ {[%emt 0:01:50]} 40. Kg2 {[%emt 0:00:12]} Rg4+ {[%emt 0:
00:03]} 41. Kf3 {[%emt 0:30:24]} Rxg5 {[%emt 0:30:30]} 42. Rd8+ {[%emt 0:00:00]
} Kh7 {[%emt 0:00:00]} 43. Rd7+ {[%emt 0:00:00] Weighted Error Value: White=0.
17 (very precise) /Black=0.15 (very precise)} 1/2-1/2

[Event "44th Chess Olympiad Women 2022"]
[Site "Chennai"]
[Date "2022.08.03"]
[Round "6.14"]
[White "Hagarova, Zuzana"]
[Black "Librelato, Kathie Goulart"]
[Result "1-0"]
[WhiteElo "2293"]
[BlackElo "2255"]
[Annotator "NA RC"]
[PlyCount "31"]
[EventDate "2022.??.??"]
[TimeControl "60"]

1. e4 {[%emt 0:00:07]} e5 {[%emt 0:00:05]} 2. Nf3 {[%emt 0:00:11]} Nc6 {
[%emt 0:00:07]} 3. d4 {[%emt 0:00:14]} exd4 {[%emt 0:00:07]} 4. c3 {[%emt 0:00:
00]} d5 {[%emt 0:09:02]} 5. exd5 {[%emt 0:00:09]} Qxd5 {[%emt 0:00:08]} 6. cxd4
{[%emt 0:00:09]} Bg4 {[%emt 0:03:24]} 7. Be2 {[%emt 0:00:55]} Bb4+ {[%emt 0:00:
00]} 8. Nc3 {[%emt 0:00:21]} O-O-O {[%emt 0:00:35]} 9. O-O {[%emt 0:00:30]} Qd7
{[%emt 0:00:46]} 10. Qa4 {[%emt 0:08:44]} Bxc3 {[%emt 0:24:40]} 11. bxc3 {
[%emt 0:00:54]} Nf6 {[%emt 0:00:22]} 12. Rb1 {[%emt 0:05:37]} Rhe8 {[%emt 0:00:
00]} 13. Ba6 {[%emt 0:01:22]} Na5 {[%emt 0:14:10]} 14. Qxa5 {[%emt 0:03:32]}
Bxf3 {[%emt 0:00:05]} 15. gxf3 {[%emt 0:00:47]} Qe6 {[%emt 0:05:17]} 16. Rxb7 {
[%emt 0:06:21]} 1-0